Cogmind - Beta 14 @@@ ROGUE MODE // 2024.08.17 @ 14:15:47 Player: szymekc Result: Destroyed by MAIN.C with High-powered Disruptor Cannon Performance ------------- Evolutions (9) 4500 Regions Visited (25) 5000 Robots Destroyed (294) 1470 Value Destroyed (16281) 16281 Prototype IDs (123) 2460 Alien Tech Used (5) 1000 Bonus (28074) 28074 TOTAL SCORE: 58785 Bonus ------- High Alert Combat Kills 5913 Follower Combat Kills 4127 Entered Garrisons 200 Used RIF Installer 500 Entered DSFs 500 Network Hubs Disabled 200 Registered with UFD 300 Met Zhirov 300 Built Enhanced Grunts 300 A7 Reached Mainframe 300 Met R17 at Cetus 500 Found Hidden Lab 3000 Used Core Reset Matrix 3000 Met R17 at Research 2000 Scanned by Researcher 500 Acquired SGEMP 2000 Delivered SGEMP 2000 Met MAIN.C 5000 Friendly Fire -2566 Cogmind --------- Core Integrity 0/1600 Matter 280/300 Energy 52/100 System Corruption 24% Temperature Cool (18) Movement Core (400) Ox7 Location -1/Command Parts ------- > --- POWER (4) -------- (None) > --- PROPULSION (7) --- (None) > --- UTILITY (13) ----- Experimental Cooling System > --- WEAPON (2) ------- Long-range Phase Cannon Long-range Phase Cannon > --- INVENTORY (5) ---- Long-range Phase Cannon Peak State ------------ > --- POWER ------------ Light Quantum Reactor Light Quantum Reactor Light Quantum Reactor Light Quantum Reactor > --- PROPULSION ------- Centrium Leg Centrium Leg Centrium Leg Centrium Leg Centrium Leg Centrium Leg Experimental Biometal Leg > --- UTILITY ---------- Coolant Network High-capacity Storage Unit Spectral Analyzer Advanced Terrain Scan Processor Advanced Particle Charger Quantum Capacitor Advanced Reaction Control System Centrium Heavy Armor Plating Medium Regenerative Plating A0-MCA's Component Scanner > --- WEAPON ----------- Improved Potential Cannon > --- INVENTORY -------- Centrium Leg Experimental Cooling System Experimental Cooling System Experimental Cooling System Advanced Energy Well Experimental Energy Well Advanced Matter Compressor Long-range Terrain Scanner Advanced Reaction Control System Graphene Brace Improved Hacking Suite Long-range Tractor Beam Transdimensional Reconstructor Core Reset Matrix Compact HERF Cannon Enhanced Nova Cannon Enhanced Nova Cannon Omega Cannon [Rating: 237] Favorites ----------- Power Quantum Reactor Engine Ion Engine Power Core Reinforced Fission Core Reactor Quantum Reactor Propulsion Centrium Leg Treads Centrium Heavy Treads Leg Centrium Leg Wheel Subdweller Monowheel Hover Unit Linear Gravjet Utility Spectral Analyzer Device Advanced Heat Sink Storage High-capacity Storage Unit Processor Spectral Analyzer Hackware Improved Hacking Suite Protection Centrium Medium Armor Plating Weapon Advanced KE Penetrator Energy Gun Advanced Variable Charge Gun Energy Cannon Enhanced Nova Cannon Ballistic Gun Advanced KE Penetrator Ballistic Cannon Omega Cannon Launcher Rocket Launcher Special Weapon Junk Cannon Slashing Weapon Plasma Sword Build | -11 -10 -10 -10 -8 -8 -6 -6 -6 -6 -6 -5 -5 -5 -4 -4 -4 -4 -3 -3 -3 -3 -2 -2 -1 -1 ------- Run | Yrd Mat Min Sub Rec Scr Fac Ext Cet Arc Hub Fac DSF Gar Fac Upp Upp Zhi Pro Res Arm Lab Res Tes Acc Com Slots Evolved 18 | . . . . . . 8 . . . . 2 . . 2 . . . . 2 . . 2 . 2 . Power 3 | . . . . . . 1 . . . . . . . 1 . . . . . . . . . 1 . Propulsion 5 | . . . . . . 2 . . . . . . . . . . . . 2 . . 1 . . . Utility 10 | . . . . . . 5 . . . . 2 . . 1 . . . . . . . 1 . 1 . Weapon . | . . . . . . . . . . . . . . . . . . . . . . . . . . Parts Attached 355 | 4 7 2 19 2 6 33 4 23 11 17 3 11 19 12 6 . 5 2 16 49 9 13 32 7 43 Power 43 | . 2 . 1 . 1 3 1 2 4 2 . 1 2 1 . . 1 . . 4 1 3 4 4 6 Engine 7 | . 2 . 1 . 1 2 1 . . . . . . . . . . . . . . . . . . Core 2 | . . . . . . 1 . . . . . . . 1 . . . . . . . . . . . Reactor 34 | . . . . . . . . 2 4 2 . 1 2 . . . 1 . . 4 1 3 4 4 6 Propulsion 53 | 2 . . 4 1 2 3 . 2 . . . . 4 . . . . . 1 13 3 2 3 . 13 Treads 21 | 2 . . 1 . . . . 2 . . . . 4 . . . . . 1 5 . . . . 6 Leg 22 | . . . . . 1 3 . . . . . . . . . . . . . 8 3 2 3 . 2 Wheel 5 | . . . 3 1 1 . . . . . . . . . . . . . . . . . . . . Hover 5 | . . . . . . . . . . . . . . . . . . . . . . . . . 5 Flight . | . . . . . . . . . . . . . . . . . . . . . . . . . . Utility 144 | 1 2 2 2 1 2 15 1 4 5 11 3 3 4 11 5 . 4 2 12 24 2 6 12 2 8 Device 84 | 1 . . . . 1 5 . 2 4 4 2 1 . 8 3 . 2 2 8 19 1 3 9 1 8 Storage 8 | . . 1 1 . . 1 . 1 1 . . . . 1 . . 1 . . . . . 1 . . Processor 6 | . . . . . . 2 1 . . . . . . 1 . . . . 1 . . . 1 . . Hackware 9 | . . . . . . 2 . . . 2 1 . . . . . . . 2 . . 2 . . . Protection 37 | . 2 1 1 1 1 5 . 1 . 5 . 2 4 1 2 . 1 . 1 5 1 1 1 1 . Artifact . | . . . . . . . . . . . . . . . . . . . . . . . . . . Weapon 115 | 1 3 . 12 . 1 12 2 15 2 4 . 7 9 . 1 . . . 3 8 3 2 13 1 16 Energy Gun 6 | . . . 1 . . . . 2 . 1 . . . . 1 . . . 1 . . . . . . Energy Cannon 71 | . . . 2 . . 7 1 8 . 2 . 5 6 . . . . . 1 6 3 1 13 1 15 Ballistic Gun 16 | 1 3 . 5 . . . . 3 2 1 . 1 . . . . . . . . . . . . . Ballistic Cannon 1 | . . . . . . . . . . . . . . . . . . . . . . . . . 1 Launcher 12 | . . . 3 . . 2 . . . . . 1 3 . . . . . 1 1 . 1 . . . Special Weapon 8 | . . . 1 . 1 3 1 2 . . . . . . . . . . . . . . . . . Impact Weapon . | . . . . . . . . . . . . . . . . . . . . . . . . . . Slashing Weapon 1 | . . . . . . . . . . . . . . . . . . . . 1 . . . . . Piercing Weapon . | . . . . . . . . . . . . . . . . . . . . . . . . . . Special Melee Weapon . | . . . . . . . . . . . . . . . . . . . . . . . . . . Unidentified Prototypes 33 | . . . . . 1 1 . 4 1 2 . . . 1 1 . 4 . 1 7 4 3 2 . 1 Corrupted Parts 7 | . . . . . . . . 1 2 . . . . . . . . . . . 1 . . . 3 System Corruption 44 | . . . . . . . . 5 6 . . . . . . . . . . . 10 . . . 23 Parts Lost 48 | . 1 . 4 . . 1 . 3 . 1 . 2 2 . . . . . . 2 . . 1 . 31 Power 9 | . . . 1 . . . . . . . . 1 . . . . . . . . . . . . 7 Propulsion 13 | . . . 2 . . . . . . . . . 1 . . . . . . . . . . . 10 Utility 21 | . 1 . . . . 1 . 2 . 1 . 1 1 . . . . . . 2 . . 1 . 11 Weapon 5 | . . . 1 . . . . 1 . . . . . . . . . . . . . . . . 3 Highest Loss Streak 21 | . 1 . 2 . . 1 . 3 . 1 . 1 1 . . . . . . 1 . . 1 . 21 To Critical Strikes . | . . . . . . . . . . . . . . . . . . . . . . . . . . Average Slot Usage (%) 86 | . 97 100 99 100 91 80 82 83 85 86 88 83 84 77 82 84 83 84 79 78 84 86 86 87 66 Engine 4 | . 14 14 13 14 13 5 10 1 . . . . . . . . . . . . . . . . . Reactor 7 | . . . . . . . . 10 13 13 11 11 11 10 10 10 11 15 14 14 13 12 12 15 10 Treads 7 | . 28 28 5 . . . . 6 13 13 11 11 13 10 10 10 10 10 14 11 . . . . 1 Leg 5 | . . . . . 1 17 17 5 . . . . . . . . . . . 5 27 29 29 26 19 Wheel 5 | . . . 22 28 22 . . . . . . . . . . . . . . . . . . . . Device 13 | . 7 . . . 1 14 23 22 19 10 17 16 17 22 25 26 25 26 22 18 12 15 15 15 11 Storage 6 | . 10 8 12 14 13 5 5 5 6 6 5 5 5 5 5 5 5 5 4 4 4 4 4 3 2 Processor 7 | . . . . . . 10 10 11 13 13 11 11 11 10 10 10 10 10 9 9 9 8 11 11 8 Protection 8 | . 7 19 15 14 13 5 5 5 6 7 11 7 9 6 5 5 5 5 3 4 6 4 4 7 4 Energy Gun 2 | . . . 4 14 9 . . . . . 5 . . . 5 5 5 5 2 . . . . . . Energy Cannon 4 | . . . 8 . . 4 . 10 . 1 . 9 10 10 5 5 5 5 5 8 8 8 7 6 4 Ballistic Gun 6 | . 28 28 9 14 9 . . . 12 11 5 1 . . . . . . . . . . . . . Special Weapon 1 | . . . 6 . 4 2 4 . . . . . . . . . . . . . . . . . . Peak Build Rating 237 | 7 11 12 19 20 52 91 93 123 123 126 135 137 139 151 152 152 155 155 173 183 194 209 224 236 237 Average Rating 107 | 6 7 11 15 19 26 86 92 114 120 120 131 132 127 143 151 152 153 154 170 172 184 206 213 232 179 On Entrance 116 | 6 7 11 11 19 19 51 91 93 115 121 126 131 132 138 151 152 152 155 155 171 182 192 208 215 236 Naked Turns 48 | . . . . . . . . . . . . . . . . . . . . . . . . . 48 Heaviest Build 172 | 15 21 96 101 96 108 144 81 117 113 116 122 122 124 152 152 147 147 144 145 152 152 155 155 170 172 Greatest Support 230 | 40 40 40 40 36 55 90 90 160 160 160 160 160 160 155 155 155 155 155 230 230 180 210 208 208 210 Greatest Overweight (x) 36 | . . 2 32 5 5 1 . 1 36 . . . 1 . . . . . . 1 . . . . 1 Average Overweight (x) 1 | . . . 5 4 3 . . . 17 . . . . . . . . . . . . . . . . Largest Inventory Capacity 25 | 8 8 25 25 25 25 25 15 20 20 20 20 20 20 20 20 20 20 20 20 20 20 20 20 20 20 Average Capacity 19 | 8 7 17 22 25 25 15 15 19 20 20 20 20 20 20 20 20 20 20 20 20 20 20 20 20 16 Most Carried 25 | 7 8 6 25 25 25 24 15 20 20 20 15 20 20 20 20 19 20 20 20 20 20 20 20 20 20 Average Carried 18 | 5 6 5 19 24 24 14 14 18 19 18 13 18 19 19 19 19 19 19 19 19 19 19 19 19 15 Final Capacity 25 | 8 5 25 25 25 25 15 15 20 20 20 20 20 20 20 20 20 20 20 20 20 20 20 20 20 5 Final Carried 25 | 5 5 6 25 25 25 15 15 20 20 16 14 20 20 20 20 19 20 20 19 20 20 20 20 20 1 Class Distribution -------------------- 30% | Mutant 29% | Scavenger-Mutant 21% | Commander-Mutant 9% | Skirmisher 3% | Generator-Mutant Dominant Class ---------------- Mutant | -10/Materials Mutant | -10/Mines Scavenger-Mutant | -10/Subcaves Scavenger-Mutant | -8/Recycling Mutant | -8/Scraptown Mutant | -6/Factory Commander-Mutant | -6/Extension Commander-Mutant | -6/Cetus Commander-Mutant | -6/Archives Scavenger-Mutant | -6/Hub_04(d) Scavenger-Mutant | -5/Factory Scavenger-Mutant | -5/DSF Scavenger-Mutant | -5/Garrison Scavenger-Mutant | -4/Factory Scavenger-Mutant | -4/Upper Caves Scavenger-Mutant | -4/Upper Caves Scavenger-Mutant | -4/Zhirov Mutant | -3/Proximity Caves Skirmisher | -3/Research Skirmisher | -3/Armory Skirmisher | -3/Lab Skirmisher | -2/Research Mutant | -2/Testing Generator-Mutant | -1/Access Generator-Mutant | -1/Command Resources | -11 -10 -10 -10 -8 -8 -6 -6 -6 -6 -6 -5 -5 -5 -4 -4 -4 -4 -3 -3 -3 -3 -2 -2 -1 -1 ----------- Run | Yrd Mat Min Sub Rec Scr Fac Ext Cet Arc Hub Fac DSF Gar Fac Upp Upp Zhi Pro Res Arm Lab Res Tes Acc Com Matter Collected 5618 | 306 58 150 361 131 60 310 353 203 151 546 . 180 195 140 530 . . 80 169 615 . 194 348 74 464 Remotely 113 | . . . . . . . . . . . . . . . . . . . . . . . . . 113 Salvage Created 14944 | 131 207 38 382 146 . 921 668 167 372 1030 . 555 1074 573 719 216 . 445 379 2431 . 194 2015 340 1941 Parts 634 | 13 11 2 26 2 . 31 22 7 29 47 . 23 49 10 33 9 . 27 17 91 . 8 88 15 74 Haulers Intercepted 1 | . . . . . . . . . . . . 1 . . . . . . . . . . . . . Recyclers Shooed 4 | 1 . . . . . . 1 . . . . . . . . . . . . . . . . . 2 Parts Field Recycled . | . . . . . . . . . . . . . . . . . . . . . . . . . . Retrieved Matter . | . . . . . . . . . . . . . . . . . . . . . . . . . . Parts Self-Destructed 86 | . . . 9 . . . . . . . . . . . 31 19 . 27 . . . . . . . Prevented 2 | . . . . . . . . . . . . . . . 2 . . . . . . . . . . Kills | -11 -10 -10 -10 -8 -8 -6 -6 -6 -6 -6 -5 -5 -5 -4 -4 -4 -4 -3 -3 -3 -3 -2 -2 -1 -1 ------- Run | Yrd Mat Min Sub Rec Scr Fac Ext Cet Arc Hub Fac DSF Gar Fac Upp Upp Zhi Pro Res Arm Lab Res Tes Acc Com Combat Hostiles Destroyed 249 | . 7 3 11 . . 19 12 2 2 15 . 9 30 8 10 2 . 10 5 35 . 2 27 6 34 Melee 1 | . . . . . . . . . . . . . . . . . . . . 1 . . . . . Guns 23 | . 7 3 5 . . . . . . 8 . . . . . . . . . . . . . . . Cannons 136 | . . . 3 . . 9 8 1 2 5 . 5 23 7 9 1 . 8 3 13 . . 22 5 12 AOE 47 | . . . 3 . . 7 . . . 2 . 4 7 . . . . 1 . 4 . . 1 . 18 Classes Destroyed 26 | 2 2 . 3 . . 2 3 . . 3 . 2 1 . . . . 1 . 3 . . 3 . 1 Worker 6 | . . . . . . . . . . 2 . . . . . . . . . . . . . . 4 Builder 3 | . . . . . . . 1 . . 2 . . . . . . . . . . . . . . . Tunneler 4 | 4 . . . . . . . . . . . . . . . . . . . . . . . . . Hauler 1 | . . . . . . . . . . . . 1 . . . . . . . . . . . . . Recycler 6 | 1 . . . 2 . 2 . . . . . . . . . . . . . . . . . . 1 Mechanic 1 | . . . . . . . . . . . . . . . . . . . . . . . . . 1 Operator 9 | . . . . . . 1 . . 6 . . . . . . . . . . . . . . . 2 Drone 2 | . . . . . . . . . . . . . . . . . . 2 . . . . . . . Turret 2 | . . . 2 . . . . . . . . . . . . . . . . . . . . . . Watcher 8 | . . . . . . . . . . 2 . . . . . . . . . 2 . . 2 1 1 Swarmer 58 | . 3 3 3 . . 6 . . . . . 4 12 . 1 . . 3 . 5 . . 4 4 10 Saboteur 2 | . . . . . . . . . . . . . . . . . . . . 2 . . . . . Grunt 87 | . 4 . 2 . . 9 6 . . 9 . 2 10 7 5 . . 4 4 7 . . 6 . 12 Brawler 3 | . . . . . . . . . . . . . . . . . . . . 1 . . . . 2 Duelist 5 | . . . . . . . . . . 1 . . . . 1 . . . . 2 . . . . 1 Researcher 3 | . . . . . . . . . . . . . . . . . . . . . . . 3 . . Sentry 27 | . . . 1 . . 1 3 . 2 3 . . 6 1 2 1 . . 1 3 . . . 1 2 Demolisher 1 | . . . . . . . . . . . . . . . . . . . . 1 . . . . . Specialist 5 | . . . . . . . 1 . . 1 . 2 . . . . . . . 1 . . . . . Hunter 15 | . . . . . . . . . . . . . 1 . . . . . . 6 . 2 6 . . Programmer 27 | . . . . . . 3 1 . . 1 . . 1 . . . . 1 . 6 . . 8 1 5 Heavy 1 | . . . . . . . . . . . . 1 . . . . . . . . . . . . . Behemoth 4 | . . . . . . . 1 . . . . . . . 1 1 . . . 1 . . . . . Cetus Guard 2 | . . . . . . . . 2 . . . . . . . . . . . . . . . . . Combat Programmer 2 | . . . . . . . . . . . . . . . . . . . . . . . . . 2 Striker 2 | . . . . . . . . . . . . . . . . . . . . . . . 2 . . Alpha 7 1 | . . . . . . . . . . . . . . . . . . . . . . . 1 . . Subdweller 5 | . . . 5 . . . . . . . . . . . . . . . . . . . . . . Butcher 1 | . . . . . . . . . . 1 . . . . . . . . . . . . . . . Best Kill Streak 21 | 3 5 2 3 2 . 3 3 2 3 8 . 5 6 4 5 1 . 6 3 8 . 2 5 3 21 Combat Bots Only 19 | . 5 2 3 . . 3 3 2 2 8 . 4 6 4 5 1 . 6 3 7 . 2 5 2 19 Max Kills in Single Turn 6 | 1 1 1 2 1 . 2 1 1 1 2 . 3 3 1 1 1 . 1 1 2 . 1 2 1 6 Gunslinging . | . . . . . . . . . . . . . . . . . . . . . . . . . . Exploded 4 | . . . 2 . . 2 . . . 1 . 3 3 . . . . 1 . 2 . . 1 . 4 Melee 1 | . . . . . . . . . . . . . . . . . . . . 1 . . . . . Uniques/NPCs Destroyed 1 | . . . . . . . . 1 . . . . . . . . . . . . . . . . . A7 (-6/Cetus) Combat | -11 -10 -10 -10 -8 -8 -6 -6 -6 -6 -6 -5 -5 -5 -4 -4 -4 -4 -3 -3 -3 -3 -2 -2 -1 -1 -------- Run | Yrd Mat Min Sub Rec Scr Fac Ext Cet Arc Hub Fac DSF Gar Fac Upp Upp Zhi Pro Res Arm Lab Res Tes Acc Com Hostile Shots Fired 1790 | . 48 6 100 . . 69 203 31 2 181 . 25 117 39 15 6 . 35 16 201 . 20 168 2 506 Missed 635 | . 10 1 38 . . 28 100 14 1 50 . 7 22 16 5 4 . 7 4 59 . 7 87 2 173 Damage Taken 24261 | . 419 39 896 . . 751 577 443 17 1975 . 522 1977 244 110 23 . 275 196 2559 . 230 1761 42 11205 Core 2772 | . 65 . 172 . . 65 70 108 . 271 . . 153 . 7 . . . . 119 . 38 83 . 1621 Absorbed by Shields 3271 | . . . . . . 108 595 138 6 571 . 24 . 254 115 24 . 288 93 1055 . . . . . Reduced by Siege Mode 963 | . . . . . . . . . . 99 . 13 155 38 13 . . 54 10 226 . . . . 355 Regen/Repaired (Parts) 904 | . . . . . . 2 58 . . . 644 . . . . . . . . . . . . 36 164 Core Remaining (%) 71 | 100 . . . . 5 . . . . 39 . . 84 . . . . 99 . . 83 . 91 . . Volleys Fired 1073 | 11 18 5 51 4 . 53 47 14 22 49 . 28 123 47 24 9 . 53 29 186 3 26 138 20 113 Largest 2 | 2 2 2 2 2 . 1 2 2 2 2 . 2 1 1 1 1 . 1 1 2 1 1 1 1 2 Hottest 240 | 40 40 46 100 85 . 90 150 240 150 180 . 180 120 120 120 120 . 120 120 214 120 120 200 200 240 Shots Fired 1236 | 22 36 10 69 8 . 53 54 26 44 97 . 32 123 47 24 9 . 53 30 184 3 26 139 20 127 Gun 226 | 22 36 10 40 8 . . . 4 36 70 . . . . . . . . . . . . . . . Cannon 908 | . . . 11 . . 23 14 21 8 27 . 31 116 47 24 9 . 53 30 179 3 26 139 20 127 Launcher 32 | . . . 13 . . 6 . . . . . 1 7 . . . . . . 5 . . . . . Special 70 | . . . 5 . . 24 40 1 . . . . . . . . . . . . . . . . . Kinetic 214 | 22 36 10 32 4 . . . 2 36 70 . . . . . . . . . . . . . . 2 Thermal 689 | . . . 24 4 . 19 . 2 . 27 . 31 116 47 24 9 . 53 24 89 3 13 77 18 109 Explosive 32 | . . . 13 . . 6 . . . . . 1 7 . . . . . . 5 . . . . . Electromagnetic 236 | . . . . . . 4 14 21 8 . . . . . . . . . 6 90 . 13 62 2 16 Impact 64 | . . . . . . 24 40 . . . . . . . . . . . . . . . . . . Robot Hit Streak 25 | 6 10 4 10 9 . 9 8 13 8 24 . 11 17 20 14 4 . 21 19 21 . 3 7 9 25 Robot Miss Streak 8 | 2 2 4 8 . . 2 2 3 3 5 . 2 2 2 1 1 . 7 1 5 . 3 6 2 3 Penetration Max 1 | . . . . . . . . 1 1 1 . . . . . . . . . . . . . . . Secondary Targets 3 | . 1 . . . . . . . . 2 . . . . . . . . . . . . . . . Max Gunslinging Chain 1 | . 1 . . . . . . . . 1 . . . . . . . . . . . . . . . Capacitor 753 | . . . . . . . . . . . . 23 112 47 24 9 . 53 30 177 3 26 139 20 90 Shots Hit Robots 781 | 13 28 5 42 7 . 26 38 17 24 70 . 26 91 33 21 6 . 29 19 112 . 6 68 10 90 Core Hits 407 | 6 11 3 26 2 . 22 10 12 16 47 . 18 50 13 14 2 . 13 7 44 . . 39 4 48 Critical Kills 19 | . . . . . . 3 . . 3 5 . . . 1 1 1 . . . 3 . . . 1 1 Critical Parts Destroyed 16 | . . . . . . 1 4 . 3 8 . . . . . . . . . . . . . . . Critical Strikes 39 | . . . . . . 4 4 . 6 14 . . . 1 1 1 . . . 3 . 1 1 1 2 Meltdown 10 | . . . . . . 2 . . . . . . . 1 1 1 . . . 3 . . . 1 1 Destroy 20 | . . . . . . . . . 6 14 . . . . . . . . . . . . . . . Blast 1 | . . . . . . . . . . . . . . . . . . . . . . . . . 1 Corrupt 2 | . . . . . . . . . . . . . . . . . . . . . . 1 1 . . Smash 6 | . . . . . . 2 4 . . . . . . . . . . . . . . . . . . Melee Attacks . | . . . . . . . . . . . . . . . . . . . . . . . . . . Impact . | . . . . . . . . . . . . . . . . . . . . . . . . . . Slashing . | . . . . . . . . . . . . . . . . . . . . . . . . . . Piercing . | . . . . . . . . . . . . . . . . . . . . . . . . . . Sneak Attacks . | . . . . . . . . . . . . . . . . . . . . . . . . . . Combat Hostiles . | . . . . . . . . . . . . . . . . . . . . . . . . . . Follow-up Attacks . | . . . . . . . . . . . . . . . . . . . . . . . . . . Damage Inflicted 47731 | 156 352 71 1297 118 . 2711 2615 529 865 2941 . 1675 4437 1450 930 262 . 1403 903 5744 . 317 5375 538 13042 Guns 3831 | 156 352 67 520 118 . . . 66 677 1875 . . . . . . . . . . . . . . . Cannons 28064 | . . . 248 . . 263 252 463 159 888 . 1014 3238 1450 930 262 . 1272 903 5101 . 298 4243 538 6542 Explosions 11945 | . . . 529 . . 1046 . . 29 138 . 661 1199 . . . . 131 . 643 . . 1132 . 6437 Melee . | . . . . . . . . . . . . . . . . . . . . . . . . . . Ramming 387 | . . 4 . . . 161 100 . . 40 . . . . . . . . . . . 19 . . 63 Kinetic 3810 | 156 352 67 417 53 . . . 66 677 1875 . . . . . . . . . . . . . . 147 Thermal 30362 | . . . 351 65 . 749 . . . 1026 . 1371 3549 1450 930 262 . 1403 650 2407 . . 3808 462 11879 Explosive 3231 | . . . 529 . . 529 . . . . . 304 888 . . . . . . 643 . . . . 338 Electromagnetic 6437 | . . . . . . 31 252 463 188 . . . . . . . . . 253 2694 . 298 1567 76 615 Impact 3504 | . . . . . . 1241 2263 . . . . . . . . . . . . . . . . . . Slashing . | . . . . . . . . . . . . . . . . . . . . . . . . . . Piercing . | . . . . . . . . . . . . . . . . . . . . . . . . . . Highest Corruption 27 | . . . . . . . . 5 5 8 . . . . . . . . 3 7 17 . 11 . 27 Average Corruption 5 | . . . . . . . . 5 3 4 . . . . . . . . 2 3 8 . 6 . 6 Corruption Purged 19 | . . . . . . . . . 11 . . . . . . . . . 3 . . . 5 . . Corruption Blocked . | . . . . . . . . . . . . . . . . . . . . . . . . . . Effects 101 | . . . . . . . . 6 12 . . . . . . . . . 5 25 9 . 35 . 9 Message Errors 22 | . . . . . . . . 4 2 . . . . . . . . . 2 7 2 . 5 . . Matter Fused 23 | . . . . . . . . . 3 . . . . . . . . . 1 6 2 . 10 . 1 Heat Flow Errors 9 | . . . . . . . . . 3 . . . . . . . . . . 2 . . 3 . 1 Energy Discharges 14 | . . . . . . . . . 2 . . . . . . . . . . 2 3 . 4 . 3 Parts Rejected 1 | . . . . . . . . . . . . . . . . . . . . 1 . . . . . Parts Fused 1 | . . . . . . . . . 1 . . . . . . . . . . . . . . . . Data Loss (minor) 14 | . . . . . . . . 1 1 . . . . . . . . . 1 2 1 . 8 . . Data Loss (major) 5 | . . . . . . . . . . . . . . . . . . . . 1 1 . 2 . 1 Misfires 3 | . . . . . . . . . . . . . . . . . . . 1 . . . 2 . . Alerts 2 | . . . . . . . . 1 . . . . . . . . . . . 1 . . . . . Weapon Failures 7 | . . . . . . . . . . . . . . . . . . . . 3 . . 1 . 3 Overload Shots 2 | . . . . . . . . 2 . . . . . . . . . . . . . . . . . Overflow Damage 3223 | . . . 3 . . 386 370 . . . . 49 200 55 . . . 24 65 214 . 6 331 25 1495 Projectiles 2325 | . . . . . . 369 368 . . . . 13 53 55 . . . 24 65 187 . 6 233 25 927 Explosions 861 | . . . 3 . . . . . . . . 36 147 . . . . . . 27 . . 98 . 550 Melee 37 | . . . . . . 17 2 . . . . . . . . . . . . . . . . . 18 Knockbacks 17 | . . . . . . 6 10 . . . . . . . . . . . . . . . . . 1 Impact 16 | . . . . . . 6 9 . . . . . . . . . . . . . . . . . 1 Kinetic . | . . . . . . . . . . . . . . . . . . . . . . . . . . Secondary 1 | . . . . . . . 1 . . . . . . . . . . . . . . . . . . Self-Inflicted Damage 668 | . . . 39 . . 145 . . . 116 . 8 . . . . . . . . . . . . 360 Shots 10 | . . . 1 . . 2 . . . 2 . 1 . . . . . . . . . . . . 4 Rammed 6 | . . 1 . . . . . . . 4 . . . . . . . . . . . . . . 1 Targets Rammed 24 | . . 1 . . . 10 5 . . 4 . . . . . . . . . . . 2 . . 2 Kicked 18 | . . . . . . 10 5 . . . . . . . . . . . . . . 2 . . 1 Crushed . | . . . . . . . . . . . . . . . . . . . . . . . . . . Highest Temperature 329 | . 3 60 42 116 . 285 . 118 39 174 . . 297 240 44 68 . 323 151 329 20 270 240 80 277 Average Temperature 82 | . 2 27 12 61 . 88 . 62 28 56 . . 130 101 32 46 . 124 62 80 20 170 49 39 76 Received Heat Transfer 3682 | . 147 . 285 . . 168 230 83 . 433 . 45 513 43 16 8 . 85 36 230 . 397 45 9 909 Effects 5 | . . . . . . 1 . . . . . . 4 . . . . . . . . . . . . Energy Bleed 1 | . . . . . . 1 . . . . . . . . . . . . . . . . . . . Interference 4 | . . . . . . . . . . . . . 4 . . . . . . . . . . . . Siege Activations 36 | . . . . . . . . . . 2 . 5 10 2 3 2 . 3 1 7 . . . . 1 Total Turns 602 | . . . . . . . . . . 67 . 29 170 29 68 4 . 83 5 108 . . . . 39 Longest Duration 55 | . . . . . . . . . . 50 . 12 38 20 55 3 . 54 5 28 . . . . 39 Robots Corrupted 37 | . . . . . . 3 5 1 . . . . . . . . . . 2 14 . 2 6 1 3 Combat Hostiles 33 | . . . . . . 3 4 1 . . . . . . . . . . 2 14 . 2 4 1 2 Parts Fried 64 | . . . . . . 2 9 . 2 . . . . . . . . . 3 21 . 4 18 2 3 Impact Corruptions 24 | . . . . . . 9 13 . . . . . . . . . . . . . . . . . 2 Robots Melted 12 | . . . . . . 2 . . . . . . . 1 1 1 . 1 . 3 . . . 1 2 Combat Hostiles 9 | . . . . . . . . . . . . . . 1 1 1 . 1 . 3 . . . . 2 Parts Melted 32 | . . . . . . 3 . . . . . 1 . 2 3 1 . 1 . 5 . . 5 3 8 Heat Transferred 18574 | . . . 458 75 . 624 . . . 150 . 350 842 1221 777 222 . 1196 518 1717 . . 2710 370 7344 Parts Sabotaged 5 | . . . . . . . . . . . . . . . . . . . . 3 . . . . 2 Parts Stolen . | . . . . . . . . . . . . . . . . . . . . . . . . . . Parts Stripped . | . . . . . . . . . . . . . . . . . . . . . . . . . . Power Chain Reactions 9 | . . . . . . . . . 1 2 . 3 3 . . . . . . . . . . . . Alert | -11 -10 -10 -10 -8 -8 -6 -6 -6 -6 -6 -5 -5 -5 -4 -4 -4 -4 -3 -3 -3 -3 -2 -2 -1 -1 ------- Run | Yrd Mat Min Sub Rec Scr Fac Ext Cet Arc Hub Fac DSF Gar Fac Upp Upp Zhi Pro Res Arm Lab Res Tes Acc Com Peak Influence 1935 | 25 191 149 . 118 . 496 1033 684 486 1753 892 883 1699 950 . . . . 830 1138 . 133 749 1051 1935 Initial 891 | . 16 74 . 39 . . 242 551 262 . 858 624 662 891 . . . . 606 435 . . 38 363 672 Average 501 | 13 97 56 . 100 . 160 685 638 86 894 883 727 1283 848 . . . . 680 877 . 44 405 569 1350 Maximum Alert Level 5 | . . . . . . 2 3 2 2 5 3 3 5 3 . . . . 3 4 . . 3 3 5 Low Security (%) 40 | 100 100 100 . 100 . 72 . . 80 21 . . . . . . . . . . . 100 17 . . Level 1 7 | . . . . . . 15 7 . 10 3 . . . . . . . . . . . . 33 49 . Level 2 17 | . . . . . . 11 48 100 9 1 . 47 5 1 . . . . 51 8 . . 30 17 8 Level 3 23 | . . . . . . . 44 . . 33 100 52 22 98 . . . . 48 87 . . 17 33 28 Level 4 7 | . . . . . . . . . . 29 . . 68 . . . . . . 3 . . . . 19 Level 5 2 | . . . . . . . . . . 10 . . 3 . . . . . . . . . . . 43 High Security . | . . . . . . . . . . . . . . . . . . . . . . . . . . Max Security . | . . . . . . . . . . . . . . . . . . . . . . . . . . Sterilizations 1 | . . . . . . . . . . . . 1 . . . . . . . . . . . . . Squads Dispatched 69 | . 1 . . . . 6 4 . . 15 . 1 . 5 . . . . 6 9 . 3 6 2 11 Investigation 17 | . 1 . . . . 2 3 . . 3 . . . 1 . . . . 4 1 . . . . 2 Extermination 12 | . . . . . . 2 . . . 1 . . . . . . . . . 3 . 1 2 1 2 Reinforcement 25 | . . . . . . 1 . . . 8 . 1 . 1 . . . . 2 3 . 2 4 . 3 Assault 12 | . . . . . . . 1 . . 1 . . . 3 . . . . . 2 . . . 1 4 Garrison 3 | . . . . . . 1 . . . 2 . . . . . . . . . . . . . . . Intercept . | . . . . . . . . . . . . . . . . . . . . . . . . . . Searches Triggered . | . . . . . . . . . . . . . . . . . . . . . . . . . . Construction Impeded 3 | . . . . . . . . . . 3 . . . . . . . . . . . . . . . Haulers Reinforced . | . . . . . . . . . . . . . . . . . . . . . . . . . . Active Scanning Responses . | . . . . . . . . . . . . . . . . . . . . . . . . . . Cargo Convoy Interrupts . | . . . . . . . . . . . . . . . . . . . . . . . . . . Stealth | -11 -10 -10 -10 -8 -8 -6 -6 -6 -6 -6 -5 -5 -5 -4 -4 -4 -4 -3 -3 -3 -3 -2 -2 -1 -1 --------- Run | Yrd Mat Min Sub Rec Scr Fac Ext Cet Arc Hub Fac DSF Gar Fac Upp Upp Zhi Pro Res Arm Lab Res Tes Acc Com Distress Signals 20 | . . . . . . . . 2 . 7 . . . . . . . 2 2 1 . . 3 1 2 Communications Jammed . | . . . . . . . . . . . . . . . . . . . . . . . . . . Distress Signals . | . . . . . . . . . . . . . . . . . . . . . . . . . . Times Spotted 449 | . 8 4 17 . . 27 29 10 25 59 . 9 27 14 11 2 . 13 15 51 . 8 39 13 68 Peak Tracking Total 12 | . 5 3 6 . . 6 5 5 1 12 . 4 6 6 5 1 . 5 4 7 . 3 7 4 12 Tactical Retreats 24 | . . 1 1 . . 2 3 . . 3 . . 3 1 1 . . . 1 2 . 1 1 . 4 Traps | -11 -10 -10 -10 -8 -8 -6 -6 -6 -6 -6 -5 -5 -5 -4 -4 -4 -4 -3 -3 -3 -3 -2 -2 -1 -1 ------- Run | Yrd Mat Min Sub Rec Scr Fac Ext Cet Arc Hub Fac DSF Gar Fac Upp Upp Zhi Pro Res Arm Lab Res Tes Acc Com Traps Triggered 18 | . 1 . 2 . . 2 2 . . 1 . 2 . 1 . . . . 3 3 . . . . 1 Indirectly . | . . . . . . . . . . . . . . . . . . . . . . . . . . Trap Hack Attempts . | . . . . . . . . . . . . . . . . . . . . . . . . . . Triggered . | . . . . . . . . . . . . . . . . . . . . . . . . . . Disarmed . | . . . . . . . . . . . . . . . . . . . . . . . . . . Reprogrammed . | . . . . . . . . . . . . . . . . . . . . . . . . . . Reused . | . . . . . . . . . . . . . . . . . . . . . . . . . . Traps Extracted . | . . . . . . . . . . . . . . . . . . . . . . . . . . Installed 1 | . . . . . . . . . . 1 . . . . . . . . . . . . . . . Triggered 1 | . . . . . . . . . . . . . . . 1 . . . . . . . . . . Most Traps Carried 1 | . . . . . 1 1 1 1 1 1 . . . . . . . . . . . . . . . Machines | -11 -10 -10 -10 -8 -8 -6 -6 -6 -6 -6 -5 -5 -5 -4 -4 -4 -4 -3 -3 -3 -3 -2 -2 -1 -1 ---------- Run | Yrd Mat Min Sub Rec Scr Fac Ext Cet Arc Hub Fac DSF Gar Fac Upp Upp Zhi Pro Res Arm Lab Res Tes Acc Com Machines Disabled 51 | . 1 . 4 . . 3 3 1 1 3 . 1 3 . . . . 2 2 8 1 . 9 6 3 Max in Single Turn 2 | . 1 . 2 . . 2 . 1 . 1 . 1 1 . . . . 2 . 1 1 . 1 2 1 Garrison Access 2 | . . . . . . . . . . 1 . . . . . . . . . . . 1 . . . Garrison Relay 1 | . . . . . . . . . . . . . 1 . . . . . . . . . . . . Network Hub 1 | . . . . . . . . . . 1 . . . . . . . . . . . . . . . Machines Repaired . | . . . . . . . . . . . . . . . . . . . . . . . . . . Machines Dismantled . | . . . . . . . . . . . . . . . . . . . . . . . . . . Machines Sabotaged 1 | . . . . . . . . . . 1 . . . . . . . . . . . . . . . Overloaded Fab Kills . | . . . . . . . . . . . . . . . . . . . . . . . . . . Hacking | -11 -10 -10 -10 -8 -8 -6 -6 -6 -6 -6 -5 -5 -5 -4 -4 -4 -4 -3 -3 -3 -3 -2 -2 -1 -1 --------- Run | Yrd Mat Min Sub Rec Scr Fac Ext Cet Arc Hub Fac DSF Gar Fac Upp Upp Zhi Pro Res Arm Lab Res Tes Acc Com Machines Accessed 70 | . 2 . 1 3 5 8 13 1 . 5 2 . 2 2 . 1 4 1 3 3 . 5 5 1 3 Terminals 47 | . 1 . . 1 . 4 13 1 . 4 1 . 2 1 . 1 . 1 2 3 . 4 5 1 2 Fabricators 1 | . . . . . . 1 . . . . . . . . . . . . . . . . . . . Repair Stations 1 | . . . . . . . . . . . 1 . . . . . . . . . . . . . . Recycling Units 8 | . 1 . . 2 . 2 . . . . . . . 1 . . . . 1 . . . . . 1 Scanalyzers . | . . . . . . . . . . . . . . . . . . . . . . . . . . Garrison Access 3 | . . . . . . 1 . . . 1 . . . . . . . . . . . 1 . . . Total Hacks 204 | . 6 . 1 12 18 25 26 3 . 9 9 . 6 4 . 1 17 7 6 11 . 18 17 2 6 Successful 107 | . 2 . 1 8 18 13 11 . . 4 5 . 2 2 . 1 17 7 2 2 . 6 5 . 1 Failed 97 | . 4 . . 4 . 12 15 3 . 5 4 . 4 2 . . . . 4 9 . 12 12 2 5 Catastrophic 22 | . 1 . . 1 . 3 3 1 . 1 . . . . . . . . . 3 . 4 2 1 2 Database Lockouts . | . . . . . . . . . . . . . . . . . . . . . . . . . . Manual 50 | . 2 . . 5 . 10 7 1 . 4 . . 1 1 . . . . 5 8 . 2 . . 4 Terminals 137 | . 4 . . 6 . 18 26 3 . 8 1 . 6 3 . 1 . 7 4 11 . 17 17 2 3 Fabricators 1 | . . . . . . 1 . . . . . . . . . . . . . . . . . . . Repair Stations 8 | . . . . . . . . . . . 8 . . . . . . . . . . . . . . Recycling Units 17 | . 2 . . 6 . 3 . . . . . . . 1 . . . . 2 . . . . . 3 Scanalyzers . | . . . . . . . . . . . . . . . . . . . . . . . . . . Garrison Access 5 | . . . . . . 3 . . . 1 . . . . . . . . . . . 1 . . . Terminal Hacks 79 | . 1 . 1 2 18 6 7 . . 2 1 . 2 1 . 1 17 7 1 2 . 4 5 . 1 Record 27 | . . . . . 12 . . . . . . . . . . 1 5 7 . . . 1 1 . . Part Schematic 4 | . . . . . . . . . . . . . . . . . 4 . . . . . . . . Robot Analysis 9 | . . . . . 5 . . . . . . . . . . . 4 . . . . . . . . Prototype ID Bank 5 | . . . . . . . . . . . . . . . . . 4 . . . . 1 . . . Open Door 9 | . . . . . . 1 7 . . . . . . . . . . . . . . . . . 1 Open DSF 1 | . . . . . . . . . . . 1 . . . . . . . . . . . . . . Branch Access Points 3 | . . . . . . . . . . . . . . . . . . . 1 . . 1 1 . . Terminal Index 4 | . . . . 1 . 1 . . . 1 . . . . . . . . . . . 1 . . . Alert Level 1 | . . . . . . 1 . . . . . . . . . . . . . . . . . . . Unreport Threat 6 | . . . . . . . . . . 1 . . . 1 . . . . . 2 . . 2 . . Locate Traps 2 | . 1 . . . . . . . . . . . . . . . . . . . . . 1 . . Patrol Status 1 | . . . . . . 1 . . . . . . . . . . . . . . . . . . . Recall Reinforcements 1 | . . . . . . 1 . . . . . . . . . . . . . . . . . . . Zone Layout 2 | . . . . 1 . 1 . . . . . . . . . . . . . . . . . . . Garrison Registry 1 | . . . . . . . . . . . . . 1 . . . . . . . . . . . . Patrol Navigation 1 | . . . . . . . . . . . . . 1 . . . . . . . . . . . . Derelict Proto ID Bank 2 | . . . 1 . 1 . . . . . . . . . . . . . . . . . . . . Fabricator Hacks 1 | . . . . . . 1 . . . . . . . . . . . . . . . . . . . Network Status 1 | . . . . . . 1 . . . . . . . . . . . . . . . . . . . Repair Station Hacks 4 | . . . . . . . . . . . 4 . . . . . . . . . . . . . . Scan Component 2 | . . . . . . . . . . . 2 . . . . . . . . . . . . . . Repair 2 | . . . . . . . . . . . 2 . . . . . . . . . . . . . . Recycling Unit Hacks 3 | . . . . 2 . 1 . . . . . . . . . . . . . . . . . . . Retrieve Components 3 | . . . . 2 . 1 . . . . . . . . . . . . . . . . . . . Scanalyzer . | . . . . . . . . . . . . . . . . . . . . . . . . . . Garrison Access Hacks 2 | . . . . . . . . . . 1 . . . . . . . . . . . 1 . . . Seal Access 2 | . . . . . . . . . . 1 . . . . . . . . . . . 1 . . . Unauthorized Hacks 18 | . 1 . . 4 . 5 4 . . 1 . . . 1 . . . . 1 . . 1 . . . Terminals 13 | . 1 . . 2 . 4 4 . . 1 . . . . . . . . . . . 1 . . . Track 2 | . . . . . . 1 . . . . . . . . . . . . . . . 1 . . . Botnet 3 | . . . . 1 . 1 1 . . . . . . . . . . . . . . . . . . Operators 1 | . . . . . . 1 . . . . . . . . . . . . . . . . . . . Skim 6 | . 1 . . 1 . 1 3 . . . . . . . . . . . . . . . . . . Sabotage 1 | . . . . . . . . . . 1 . . . . . . . . . . . . . . . Fabricators . | . . . . . . . . . . . . . . . . . . . . . . . . . . Repair Stations 3 | . . . . . . 1 . . . . . . . 1 . . . . 1 . . . . . . Recycling Units 2 | . . . . 2 . . . . . . . . . . . . . . . . . . . . . Tunnel 2 | . . . . 2 . . . . . . . . . . . . . . . . . . . . . Scrapoids 3 | . . . . . . 1 . . . . . . . 1 . . . . 1 . . . . . . Scanalyzers . | . . . . . . . . . . . . . . . . . . . . . . . . . . Garrison Access . | . . . . . . . . . . . . . . . . . . . . . . . . . . Data Cores Recovered . | . . . . . . . . . . . . . . . . . . . . . . . . . . Used . | . . . . . . . . . . . . . . . . . . . . . . . . . . Hacking Detections 42 | . 2 . . 1 . 6 8 1 . 3 1 . 1 1 . . . 1 2 3 . 4 5 1 2 Full Trace Events 7 | . 1 . . . . . 3 . . 1 . . . . . . . . . 1 . . . . 1 Feedback Events . | . . . . . . . . . . . . . . . . . . . . . . . . . . Feedback Blocked . | . . . . . . . . . . . . . . . . . . . . . . . . . . Robot Schematics Acquired . | . . . . . . . . . . . . . . . . . . . . . . . . . . Robots Built . | . . . . . . . . . . . . . . . . . . . . . . . . . . Authchips . | . . . . . . . . . . . . . . . . . . . . . . . . . . Time . | . . . . . . . . . . . . . . . . . . . . . . . . . . Total Robot Build Rating . | . . . . . . . . . . . . . . . . . . . . . . . . . . Part Schematics Acquired 10 | . . . . . . . . . . . . . . . . . 4 . . . . . 6 . . Parts Built . | . . . . . . . . . . . . . . . . . . . . . . . . . . Authchips . | . . . . . . . . . . . . . . . . . . . . . . . . . . Time . | . . . . . . . . . . . . . . . . . . . . . . . . . . Total Part Build Rating . | . . . . . . . . . . . . . . . . . . . . . . . . . . Parts Repaired 2 | . . . . . . . . . . . 2 . . . . . . . . . . . . . . Time 98 | . . . . . . . . . . . 98 . . . . . . . . . . . . . . Parts Recycled . | . . . . . . . . . . . . . . . . . . . . . . . . . . Recycled Matter . | . . . . . . . . . . . . . . . . . . . . . . . . . . Retrieved Matter . | . . . . . . . . . . . . . . . . . . . . . . . . . . Retrieved Components 5 | . . . . 2 . 3 . . . . . . . . . . . . . . . . . . . Parts Scanalyzed . | . . . . . . . . . . . . . . . . . . . . . . . . . . Part Schematics Acquired . | . . . . . . . . . . . . . . . . . . . . . . . . . . Parts Damaged . | . . . . . . . . . . . . . . . . . . . . . . . . . . Bothacking | -11 -10 -10 -10 -8 -8 -6 -6 -6 -6 -6 -5 -5 -5 -4 -4 -4 -4 -3 -3 -3 -3 -2 -2 -1 -1 ------------ Run | Yrd Mat Min Sub Rec Scr Fac Ext Cet Arc Hub Fac DSF Gar Fac Upp Upp Zhi Pro Res Arm Lab Res Tes Acc Com Used RIF Installer 1 | . . . . . . . . . . . . . 1 . . . . . . . . . . . . Robots Hacked . | . . . . . . . . . . . . . . . . . . . . . . . . . . Non-combat . | . . . . . . . . . . . . . . . . . . . . . . . . . . Combat . | . . . . . . . . . . . . . . . . . . . . . . . . . . Robot Hacks Applied . | . . . . . . . . . . . . . . . . . . . . . . . . . . Relay Couplers Released 5 | . . . . . . . . . . . . . 5 . . . . . . . . . . . . Machine Destruction 5 | . . . . . . . . . . . . . 5 . . . . . . . . . . . . Fabnet Peak Effective % . | . . . . . . . . . . . . . . . . . . . . . . . . . . Robots Rewired 17 | . . . . . . . 15 . . . . . . . 1 . . . . . . . 1 . . Allies Hacked 2 | . . . . . . . . . . . . . . . . . . . . 2 . . . . . Hacks Repelled . | . . . . . . . . . . . . . . . . . . . . . . . . . . Allies | -11 -10 -10 -10 -8 -8 -6 -6 -6 -6 -6 -5 -5 -5 -4 -4 -4 -4 -3 -3 -3 -3 -2 -2 -1 -1 -------- Run | Yrd Mat Min Sub Rec Scr Fac Ext Cet Arc Hub Fac DSF Gar Fac Upp Upp Zhi Pro Res Arm Lab Res Tes Acc Com Total Allies 81 | . . . . . . 5 24 5 . . . . . 5 1 . . . 5 10 . . 1 3 22 Largest Group 16 | . . . . . . 5 14 16 15 13 . . . 5 1 1 1 1 5 10 . . 1 4 11 Highest-Rated Group 938 | . . . . . . 140 559 938 775 638 . . . 238 48 48 48 48 329 481 . . 146 525 277 Highest-Rated Ally 159 | . . . . . . 28 159 153 96 96 . . . 50 48 48 48 48 67 64 . . 146 146 146 Total Orders 2 | . . . . . . . . . 2 . . . . . . . . . . . . . . . . STAY 1 | . . . . . . . . . 1 . . . . . . . . . . . . . . . . FOLLOW 1 | . . . . . . . . . 1 . . . . . . . . . . . . . . . . Ally Attacks 671 | . . . . . . 21 162 61 9 146 . . . 18 . . . 1 53 85 . . 4 21 90 Total Damage 18791 | . . . . . . 318 3607 1512 327 4793 . . . 546 . . . . 1553 2569 . . 204 934 2428 Kills 121 | . . . . . . 4 25 9 2 41 . . . 3 . . . . 7 10 . . 2 7 11 Allies Corrupted 2 | . . . . . . . . . . . . . . . . . . . . 1 . . . . 1 Allies Melted . | . . . . . . . . . . . . . . . . . . . . . . . . . . Intel | -11 -10 -10 -10 -8 -8 -6 -6 -6 -6 -6 -5 -5 -5 -4 -4 -4 -4 -3 -3 -3 -3 -2 -2 -1 -1 ------- Run | Yrd Mat Min Sub Rec Scr Fac Ext Cet Arc Hub Fac DSF Gar Fac Upp Upp Zhi Pro Res Arm Lab Res Tes Acc Com Robot Analysis Total 9 | . . . . . 5 . . . . . . . . . . . 4 . . . . . . . . Derelict Logs Recovered 9 | . . 1 1 . 5 . . . . . . . . . . 2 . . . . . . . . . Drone Launches . | . . . . . . . . . . . . . . . . . . . . . . . . . . Drone Recoveries . | . . . . . . . . . . . . . . . . . . . . . . . . . . Exploration | -11 -10 -10 -10 -8 -8 -6 -6 -6 -6 -6 -5 -5 -5 -4 -4 -4 -4 -3 -3 -3 -3 -2 -2 -1 -1 ------------- Run | Yrd Mat Min Sub Rec Scr Fac Ext Cet Arc Hub Fac DSF Gar Fac Upp Upp Zhi Pro Res Arm Lab Res Tes Acc Com Turns Passed 24637 | 99 395 962 2618 233 2749 1049 1335 575 4093 652 213 322 1241 533 625 791 233 731 546 1319 231 689 1212 349 842 Spaces Moved 11408 | 20 199 229 917 136 1726 714 817 232 395 268 69 132 586 295 337 481 144 389 312 633 129 518 826 268 636 Core 510 | . . . 68 . . . . . 191 . . . . . . . . . . . . . . . 251 Treads 4491 | 20 199 229 178 . . . . 190 204 268 69 132 586 295 337 481 144 389 312 458 . . . . . Legs 4091 | . . . . . 223 714 817 42 . . . . . . . . . . . 175 129 518 826 268 379 Wheels 2310 | . . . 671 136 1503 . . . . . . . . . . . . . . . . . . . . Hover 6 | . . . . . . . . . . . . . . . . . . . . . . . . . 6 Flight . | . . . . . . . . . . . . . . . . . . . . . . . . . . Fastest Speed 28 | 160 160 160 130 129 130 116 116 116 160 160 160 160 152 152 152 152 152 152 150 120 120 115 115 115 28 Average Speed 178 | 160 160 175 262 158 155 116 116 196 977 160 160 160 159 152 152 152 152 152 150 147 120 119 115 115 89 Slowest Speed 1850 | 160 160 320 1650 175 200 186 116 240 1850 160 160 160 240 152 152 152 152 152 150 190 120 120 115 115 190 Overloaded Moves . | . . . . . . . . . . . . . . . . . . . . . . . . . . Propulsion Burnouts . | . . . . . . . . . . . . . . . . . . . . . . . . . . Robots Hopped 1 | . . . . . . . . . . . . . . . . . . . . . . . . . 1 Cave-ins Triggered . | . . . . . . . . . . . . . . . . . . . . . . . . . . Teleports 1 | . . . . . . . . . . . . . . . . . . . . 1 . . . . . Exploration Rate (%) 53 | 3 35 65 51 32 94 29 82 86 96 57 5 97 80 8 65 73 63 63 14 49 93 20 97 11 33 Regions Visited 25 Branch Regions 16 Pre-discovered Areas 8 | . . 1 1 2 1 . . . . . . . . . . . 3 . . . . . . . . Known Exits Taken 5 | . . . . . . 1 . . . . 1 . . . . . . . 1 . . 1 . 1 . Unknown Exits Taken 18 | 1 1 1 1 1 1 . 1 1 1 1 . . . 1 1 1 1 1 . 1 1 . 1 . . Scrap Searched 15 | . . 1 . . 6 . . . . . . . . . 3 3 . 2 . . . . . . . Spaces Dug 143 | . . . . . . 11 . . . . . . 12 7 . . . . 9 11 . 12 43 4 34 Terrain Destroyed 770 | . . . 82 . . 81 3 . 13 49 . 27 90 14 3 2 . 34 10 68 . 13 97 27 157 Melee . | . . . . . . . . . . . . . . . . . . . . . . . . . . Projectile 227 | . . . . . . 16 3 . 13 25 . 3 21 14 3 2 . 23 10 29 . 13 33 6 13 AOE 543 | . . . 82 . . 65 . . . 24 . 24 69 . . . . 11 . 39 . . 64 21 144 Terrain Rammed . | . . . . . . . . . . . . . . . . . . . . . . . . . . Walls Destroyed . | . . . . . . . . . . . . . . . . . . . . . . . . . . Machines Disabled . | . . . . . . . . . . . . . . . . . . . . . . . . . . Actions | -11 -10 -10 -10 -8 -8 -6 -6 -6 -6 -6 -5 -5 -5 -4 -4 -4 -4 -3 -3 -3 -3 -2 -2 -1 -1 --------- Run | Yrd Mat Min Sub Rec Scr Fac Ext Cet Arc Hub Fac DSF Gar Fac Upp Upp Zhi Pro Res Arm Lab Res Tes Acc Com Total 15194 | 65 242 780 1046 148 1799 885 1150 324 582 384 171 229 867 378 451 541 158 528 388 1014 207 585 1092 307 873 Wait 1655 | 27 4 541 22 2 . 34 126 28 145 34 98 42 120 17 71 50 3 83 18 80 46 18 28 4 14 Move 11379 | 19 198 228 916 135 1725 712 816 231 394 267 68 131 584 294 336 480 143 388 311 632 128 517 825 267 634 Hop 1 | . . . . . . . . . . . . . . . . . . . . . . . . . 1 Pick Up 239 | 2 7 2 29 2 32 18 1 14 3 4 2 11 10 3 2 . 1 1 8 29 7 2 19 4 26 Fast Attach 98 | . 2 . . 1 3 4 3 4 5 2 . 2 3 5 1 . 6 . . 19 4 5 10 3 16 Attach 106 | 1 . . 7 1 1 17 . 7 . 4 2 3 4 1 2 . . . 4 13 3 2 6 2 26 Detach 26 | . . . . . . 4 2 . . . . . . . 1 . . . 1 . 3 . 6 2 7 Swap 156 | 3 5 2 12 . 2 12 1 12 6 11 1 6 12 6 3 . . 2 12 18 4 6 16 2 2 Drop 270 | 2 8 1 9 3 36 20 4 14 7 8 . 6 11 5 5 1 5 1 5 37 9 7 31 3 32 Fire 1073 | 11 18 5 51 4 . 53 47 14 22 49 . 28 123 47 24 9 . 53 29 186 3 26 138 20 113 Melee . | . . . . . . . . . . . . . . . . . . . . . . . . . . Ram 1 | . . . . . . . . . . . . . . . . . . . . . . . . . 1 Kick 18 | . . . . . . 10 5 . . . . . . . . . . . . . . 2 . . 1 Crush 5 | . . 1 . . . . . . . 4 . . . . . . . . . . . . . . . Escape Stasis 19 | . . . . . . 1 18 . . . . . . . . . . . . . . . . . . Rewire 146 | . . . . . . . 127 . . . . . . . 6 . . . . . . . 13 . . Trap 1 | . . . . . . . . . . 1 . . . . . . . . . . . . . . . Miscellaneous 1 | . . . . . . . . . . . . . . . . 1 . . . . . . . . . Route ------- -11/Scrapyard -10/Materials (discovered 2 exits: [*Mat] / [*Min]) -10/Mines -10/Subcaves (discovered 2 exits: [*Mat] / *Rec) -8/Recycling -8/Scraptown (discovered 2 exits: *Fac x2) -6/Factory (discovered 4 exits: *Fac x2 / [*Low] / *Ext) -6/Extension (discovered 2 exits: *Fac / *Cet) -6/Cetus (discovered 2 exits: *Fac / [*Arc]) -6/Archives (discovered 3 exits: *Fac / *Hub x2) -6/Hub_04(d) (discovered 3 exits: *Fac x3) -5/Factory (discovered 2 exits: Upp / DSF) -5/DSF -5/Garrison (discovered 3 exits: *Fac x3) -4/Factory (discovered 2 exits: *Res / [*Upp]) -4/Upper Caves -4/Upper Caves (discovered 2 exits: *Res / *Zhi) -4/Zhirov -3/Proximity Caves -3/Research (discovered 3 exits: *Arm / Qua x2) -3/Armory (discovered 2 exits: Res / [*Lab]) -3/Lab -2/Research (discovered 2 exits: *Tes x2) -2/Testing -1/Access (discovered 2 exits: Sur / *Com) -1/Command History --------- Turn | Location | Event 21 | -11/Scrapyard | Discovered new exit (range 3) 100 | -11/Scrapyard | Entered Materials 140 | -10/Materials | Discovered new exit (range 8) 220 | -10/Materials | Discovered new exit (range 10) 301 | -10/Materials | Build established: Mutant 495 | -10/Materials | Entered Mines 551 | -10/Mines | Assembled infested the area 556 | -10/Mines | Assisted by a Guerilla fighting off Assembled 800 | -10/Mines | Found a damaged Exp. Sensor Array with a note attached 806 | -10/Mines | Found Prototype Device 1441 | -10/Mines | Discovered new exit (range 4) 1457 | -10/Mines | Entered Subcaves 2438 | -10/Subcaves | Build established: Scavenger-Mutant 2808 | -10/Subcaves | Shifting Twisted Machinery released Piercing Trap 3170 | -10/Subcaves | Discovered new exit (range 8) 3519 | -10/Subcaves | A swath of the cavern ceiling suddenly collapsed 3682 | -10/Subcaves | Visited 4L-MR0's lab 3696 | -10/Subcaves | Found Cargo Legs 3803 | -10/Subcaves | Core integrity fell below 50% 4035 | -10/Subcaves | Core integrity fell below 20% 4052 | -10/Subcaves | Discovered new exit (range 15) 4075 | -10/Subcaves | Entered Recycling 4266 | -8/Recycling | Scanned before Scraplab entrance 4291 | -8/Recycling | Entered Scraplab 4305 | -8/Recycling | Discovered new exit (range 3) 4308 | -8/Recycling | Entered Scraptown 4718 | -8/Scraptown | Scanned Subdweller tech in exchange for log data 4723 | -8/Scraptown | Learned Research emergency access door positions 4725 | -8/Scraptown | Learned Factory terminal intel 4726 | -8/Scraptown | Learned location of Warlord (-5) 4728 | -8/Scraptown | Learned location of 1 exit from Factory 4747 | -8/Scraptown | Discovered new exit (range 9) 4882 | -8/Scraptown | Visited Shadow of the Wyrm 4959 | -8/Scraptown | Visited Cyclists 5079 | -8/Scraptown | Visited Cave Peace 5367 | -8/Scraptown | Visited Symbiants 5428 | -8/Scraptown | Visited Comm Corps 5473 | -8/Scraptown | Visited Assassins FH 5492 | -8/Scraptown | Build established: Mutant 5502 | -8/Scraptown | Visited The Evicted 5528 | -8/Scraptown | Visited UFD Registry 5529 | -8/Scraptown | Registered with UFD as "Megadisc" 5558 | -8/Scraptown | Visited LU-1G1's Boring Crew 5612 | -8/Scraptown | Visited Infowarlord's Domain 5612 | -8/Scraptown | Identified Exp. Sensor Array 5631 | -8/Scraptown | Visited A0-MCA Data Center 5638 | -8/Scraptown | Given a B- rating by A0-MCA 5640 | -8/Scraptown | Found A0-MCA's Component Scanner 5688 | -8/Scraptown | Delivered Scrap Shield to a Scientist 5825 | -8/Scraptown | Visited Curators Association 5873 | -8/Scraptown | Visited Derelict Rescue Squad 5881 | -8/Scraptown | Found DRS Beacon 5961 | -8/Scraptown | Visited DA-N13 Charitable Foundation 5967 | -8/Scraptown | Found DCF Scrap (28 items) 6004 | -8/Scraptown | Visited Science Guys 6061 | -8/Scraptown | Visited Junk Repository 6125 | -8/Scraptown | Visited Junk Cannon Lab 6135 | -8/Scraptown | Found Prototype Special Weapon 6135 | -8/Scraptown | Identified Junk Cannon 6258 | -8/Scraptown | Visited Analyses Database 6363 | -8/Scraptown | Found Spectral Analyzer 6597 | -8/Scraptown | Attached Cargo Legs, gained temporary slots: Utility x2 6599 | -8/Scraptown | Found Scrap Suit 6602 | -8/Scraptown | Found Scrap Suit 6897 | -8/Scraptown | Discovered new exit (range 5) 7057 | -8/Scraptown | Entered Factory 7057 | -6/Factory | Evolved 8 slots: Power x1, Propulsion x2, Utility x5 7058 | -6/Factory | Identified exit to Extension 7059 | -6/Factory | Loaded intel: 28 terminal locations 7258 | -6/Factory | Discovered new exit (range 13) 7681 | -6/Factory | Spotted B-75 Beast 7749 | -6/Factory | Garrison activated, responded to threat 7855 | -6/Factory | Discovered new exit (range 4) 7954 | -6/Factory | Scrapoids reinforcements arrived? 7986 | -6/Factory | Discovered new exit (range 23) 8106 | -6/Factory | Entered Extension 8106 | -6/Extension | Accompanied by 4 allies 8211 | -6/Extension | Rescued A7 8218 | -6/Extension | Rescued a captive Derelict 8219 | -6/Extension | Rescued a captive Derelict 8240 | -6/Extension | Build established: Commander-Mutant 8265 | -6/Extension | Rescued a captive Derelict 8437 | -6/Extension | Rescued a captive Derelict 8456 | -6/Extension | First assault squad dispatched 8930 | -6/Extension | Spotted B-75 Beast 8938 | -6/Extension | Spotted B-75 Beast 8951 | -6/Extension | Allies destroyed B-75 Beast 8965 | -6/Extension | Destroyed B-75 Beast 9028 | -6/Extension | Rescued a captive Derelict 9030 | -6/Extension | Build established: Mutant 9327 | -6/Extension | Rescued a captive Derelict 9328 | -6/Extension | Rescued a captive Derelict 9360 | -6/Extension | Rescued a captive Derelict 9391 | -6/Extension | Discovered new exit (range 10) 9392 | -6/Extension | Discovered new exit (range 6) 9441 | -6/Extension | Entered Cetus 9441 | -6/Cetus | Accompanied by 14 allies (A7) 9446 | -6/Cetus | Acquired a Cetus Manufacturing Module code from A7 9454 | -6/Cetus | Spotted Cetus Guard 9454 | -6/Cetus | Spotted Cetus Guard 9461 | -6/Cetus | Spotted Cetus Guard 9463 | -6/Cetus | Spotted Cetus Guard 9482 | -6/Cetus | Allies destroyed Cetus Guard 9487 | -6/Cetus | Allies destroyed Cetus Guard 9489 | -6/Cetus | Allies destroyed Cetus Guard 9489 | -6/Cetus | Allies destroyed Cetus Guard 9517 | -6/Cetus | Lost 3 allies 9519 | -6/Cetus | Lost 3 parts (2u1w) 9693 | -6/Cetus | Started Cetus Manufacturing Module 9715 | -6/Cetus | Escorted A7 to Cetus Mainframe 9718 | -6/Cetus | Manufactured an Enhanced Grunt 9743 | -6/Cetus | Manufactured an Enhanced Grunt 9768 | -6/Cetus | Manufactured an Enhanced Grunt 9793 | -6/Cetus | Manufactured an Enhanced Grunt 9807 | -6/Cetus | Discovered new exit (range 23) 9818 | -6/Cetus | Manufactured an Enhanced Grunt 9889 | -6/Cetus | Spotted Cetus Guard 9889 | -6/Cetus | Spotted Cetus Guard 9889 | -6/Cetus | Spotted Cetus Guard 9889 | -6/Cetus | Spotted Cetus Guard 9891 | -6/Cetus | Discovered new exit (range 23) 9899 | -6/Cetus | Destroyed Cetus Guard 9906 | -6/Cetus | Allies destroyed Cetus Guard 9910 | -6/Cetus | Allies destroyed Cetus Guard 9913 | -6/Cetus | Destroyed Cetus Guard 9938 | -6/Cetus | Met Revision 17 9960 | -6/Cetus | Murdered A7 9961 | -6/Cetus | Extracted ID and sensor layout for unrecognized location from A7's data core 10004 | -6/Cetus | Build established: Commander-Mutant 10016 | -6/Cetus | Entered Archives 10016 | -6/Archives | Accompanied by 15 allies 10048 | -6/Archives | Discovered new exit (range 22) 10123 | -6/Archives | Discovered new exit (range 20) 10127 | -6/Archives | Discovered new exit (range 22) 14109 | -6/Archives | Entered Hub_04(d) 14109 | -6/Hub_04(d) | Accompanied by 13 allies 14268 | -6/Hub_04(d) | Garrison activated, responded to threat 14285 | -6/Hub_04(d) | Discovered new exit (range 24) 14299 | -6/Hub_04(d) | Lost 4 allies 14459 | -6/Hub_04(d) | First assault squad dispatched 14491 | -6/Hub_04(d) | Found Prototype Device 14491 | -6/Hub_04(d) | Identified Exp. Thermal Shield 14514 | -6/Hub_04(d) | Build established: Scavenger-Mutant 14515 | -6/Hub_04(d) | Garrison activated, responded to threat 14516 | -6/Hub_04(d) | Lost 4 allies 14641 | -6/Hub_04(d) | Discovered new exit (range 12) 14658 | -6/Hub_04(d) | Discovered new exit (range 11) 14733 | -6/Hub_04(d) | Destroyed 8 combat bots 14741 | -6/Hub_04(d) | Network Hub disabled 14743 | -6/Hub_04(d) | Spotted Lightning 14743 | -6/Hub_04(d) | Spotted Lightning 14743 | -6/Hub_04(d) | Spotted Lightning 14744 | -6/Hub_04(d) | Spotted Lightning 14746 | -6/Hub_04(d) | Spotted Lightning 14751 | -6/Hub_04(d) | Spotted Lightning 14752 | -6/Hub_04(d) | Core integrity fell below 50% 14761 | -6/Hub_04(d) | Entered Factory 14761 | -5/Factory | Evolved 2 slots: Utility x2 14762 | -5/Factory | Identified exit to Upper Caves 14849 | -5/Factory | Repaired Centrium Medium Armor Plating 14894 | -5/Factory | Repaired Neutron Cannon 14972 | -5/Factory | Identified exit to DSF 14974 | -5/Factory | Entered DSF 15017 | -5/DSF | Additional patrols routed to DSF 15048 | -5/DSF | Found Quantum Capacitor 15051 | -5/DSF | Found Quantum Capacitor 15144 | -5/DSF | Discovered new exit (range 23) 15264 | -5/DSF | Sterilization system engaged 15284 | -5/DSF | Ambient heat levels rising (+10) 15296 | -5/DSF | Entered Garrison 15420 | -5/Garrison | Triggered checkpoint 15559 | -5/Garrison | Triggered checkpoint 15600 | -5/Garrison | Triggered checkpoint 15755 | -5/Garrison | Discovered new exit (range 12) 15788 | -5/Garrison | Triggered checkpoint 15983 | -5/Garrison | Spotted B-86 Titan 16094 | -5/Garrison | Discovered new exit (range 8) 16124 | -5/Garrison | Triggered checkpoint 16159 | -5/Garrison | Discovered new exit (range 18) 16159 | -5/Garrison | Discovered new exit (range 25) 16159 | -5/Garrison | Discovered new exit (range 63) 16234 | -5/Garrison | Triggered checkpoint 16329 | -5/Garrison | Installed Relay Interface Framework 16511 | -5/Garrison | Garrison Relay disabled 16537 | -5/Garrison | Entered Factory 16537 | -4/Factory | Evolved 2 slots: Power x1, Utility x1 16787 | -4/Factory | First assault squad dispatched 16846 | -4/Factory | Discovered new exit (range 6) 16896 | -4/Factory | Discovered new exit (range 17) 16980 | -4/Factory | Scrapoids reinforcements arrived? 17030 | -4/Factory | Lost 5 allies 17070 | -4/Factory | Entered Upper Caves 17072 | -4/Upper Caves | UFD Scientist delivered a prototype 17077 | -4/Upper Caves | Found Prototype Protection 17077 | -4/Upper Caves | Identified Enh. Scrap Shield 17217 | -4/Upper Caves | Attracted the attention of an 0b10 outpost 17375 | -4/Upper Caves | Spotted B-86 Titan 17377 | -4/Upper Caves | Destroyed B-86 Titan 17658 | -4/Upper Caves | Discovered new exit (range 16) 17659 | -4/Upper Caves | Attracted the attention of an 0b10 checkpoint 17695 | -4/Upper Caves | Entered another Upper Caves area 17695 | -4/Upper Caves | Accompanied by 1 ally 17696 | -4/Upper Caves | Activated DRS Beacon 17774 | -4/Upper Caves | Discovered new exit (range 8) 17812 | -4/Upper Caves | Spotted B-86 Titan 17991 | -4/Upper Caves | Destroyed B-86 Titan 18024 | -4/Upper Caves | Learned Research emergency access door positions 18177 | -4/Upper Caves | Attracted the attention of an 0b10 checkpoint 18197 | -4/Upper Caves | Learned Research interactive machine intel 18366 | -4/Upper Caves | Discovered new exit (range 24) 18486 | -4/Upper Caves | Entered Zhirov 18486 | -4/Zhirov | Accompanied by 1 ally 18486 | -4/Zhirov | Discovered new exit (range 3) 18514 | -4/Zhirov | Met Zhirov 18541 | -4/Zhirov | Learned location of Quarantine (-3) 18541 | -4/Zhirov | Learned location of Testing (-2) 18541 | -4/Zhirov | Learned location of Command (-1) 18566 | -4/Zhirov | Zhirov requested help retrieving the SGEMP Prototype 18588 | -4/Zhirov | Found Alien Artifact 18607 | -4/Zhirov | Found Alien Artifact 18607 | -4/Zhirov | Identified Integrated Reactor 18607 | -4/Zhirov | Installed Integrated Reactor, increased core energy generation (+10) 18719 | -4/Zhirov | Entered Proximity Caves 18719 | -3/Proximity Caves | Accompanied by 1 ally 18948 | -3/Proximity Caves | Spotter reported a threat 19033 | -3/Proximity Caves | Attracted the attention of an 0b10 base 19072 | -3/Proximity Caves | Spotter reported a threat 19084 | -3/Proximity Caves | Learned Armory garrison access intel 19084 | -3/Proximity Caves | Learned Extension emergency access door positions 19084 | -3/Proximity Caves | Learned Extension trap positions 19084 | -3/Proximity Caves | Learned 8 Factory zone layouts 19084 | -3/Proximity Caves | Learned location of 2 exits from Upper Caves 19133 | -3/Proximity Caves | Spotter reported a threat 19169 | -3/Proximity Caves | Spotter reported a threat 19250 | -3/Proximity Caves | Build established: Mutant 19409 | -3/Proximity Caves | Discovered new exit (range 14) 19450 | -3/Proximity Caves | Entered Research 19450 | -3/Research | Evolved 2 slots: Propulsion x2 19452 | -3/Research | Loaded intel: 46 interactive machine locations 19463 | -3/Research | Found Prototype Launcher 19571 | -3/Research | Identified exit to Armory 19571 | -3/Research | Identified exit to Quarantine 19650 | -3/Research | Revision forces began assault on 0b10 19674 | -3/Research | Met up with Revision 17++ 19757 | -3/Research | Identified Tactical Quantum Warhead 19851 | -3/Research | Scrapoids reinforcements arrived? 19996 | -3/Research | Entered Armory 19996 | -3/Armory | Accompanied by 2 allies 20077 | -3/Armory | Spotted B-86 Titan 20102 | -3/Armory | Destroyed B-86 Titan 20283 | -3/Armory | First assault squad dispatched 20406 | -3/Armory | Destroyed 7 combat bots 20572 | -3/Armory | Identified Transdimensional Reconstructor 20572 | -3/Armory | Warped through subspace to slip node 20572 | -3/Armory | Discovered new exit (range 1) 20687 | -3/Armory | Assisted by bots powering up and referring to "LRC-V3" 20709 | -3/Armory | Found Prototype Protection 20709 | -3/Armory | Identified Centrium Heavy Armor Plating 20712 | -3/Armory | Found Prototype Device 20712 | -3/Armory | Identified Exp. Focal Shield 20992 | -3/Armory | Build established: Commander-Skirmisher 21063 | -3/Armory | Lost 9 allies 21285 | -3/Armory | Discovered new exit (range 22) 21312 | -3/Armory | Build established: Skirmisher 21315 | -3/Armory | Entered Lab 21315 | -3/Lab | Discovered new exit (range 9) 21329 | -3/Lab | Hidden lab's door opened automatically 21329 | -3/Lab | Sensor layout match revealed 21330 | -3/Lab | Gained access to the hidden lab's interior 21393 | -3/Lab | Found Alien Artifact 21408 | -3/Lab | Found Transdimensional Reconstructor 21415 | -3/Lab | Found Alien Artifact 21415 | -3/Lab | Identified Integrated Dissipator 21415 | -3/Lab | Installed Integrated Dissipator, increased core heat dissipation (+20) 21424 | -3/Lab | Found Alien Artifact 21424 | -3/Lab | Identified Core Expander 21424 | -3/Lab | Installed Core Expander, added new Utility slot 21448 | -3/Lab | Found Prototype Protection 21448 | -3/Lab | Identified Med. Regenerative Plating 21453 | -3/Lab | Found Prototype Hackware 21467 | -3/Lab | Found Prototype Energy Cannon 21477 | -3/Lab | Identified Potential Cannon 21517 | -3/Lab | System corruption reached 10% 21519 | -3/Lab | Found Prototype Special Weapon 21546 | -3/Lab | Entered Research 21546 | -2/Research | Evolved 2 slots: Propulsion x1, Utility x1 21558 | -2/Research | Identified Quantum Router 21561 | -2/Research | Identified exit to Testing 21792 | -2/Research | Spotted B-90 Cyclops 21965 | -2/Research | Spotted B-90 Cyclops 22132 | -2/Research | Found Prototype Launcher 22132 | -2/Research | Identified Enh. Gamma Bomb Array 22235 | -2/Research | Entered Testing 22304 | -2/Testing | Found Prototype Energy Cannon 22304 | -2/Testing | Identified Imp. Potential Cannon 22421 | -2/Testing | Identified Gui. Remote Datajack 22448 | -2/Testing | Scanned by Researcher 22819 | -2/Testing | Build established: Mutant 22840 | -2/Testing | Spotted Striker 22840 | -2/Testing | Spotted Striker 22858 | -2/Testing | Destroyed Striker 22859 | -2/Testing | Spotted Alpha 7 22860 | -2/Testing | Destroyed Striker 22891 | -2/Testing | Destroyed Alpha 7 22911 | -2/Testing | Stole the SGEMP Prototype 23036 | -2/Testing | System corruption reached 10% 23322 | -2/Testing | Spotted PG-TUFH0Y0U5Z 23339 | -2/Testing | Rewired PG-TUFH0Y0U5Z 23357 | -2/Testing | Discovered new exit (range 9) 23411 | -2/Testing | Found Omega Cannon 23447 | -2/Testing | Entered Access 23447 | -1/Access | Accompanied by 1 ally 23447 | -1/Access | Evolved 2 slots: Power x1, Utility x1 23448 | -1/Access | Delivered the SGEMP Prototype to Zhirov 23448 | -1/Access | Zhirov transferred Access data 23449 | -1/Access | Loaded intel: 107 machine locations 23449 | -1/Access | Loaded intel: 70 trap records 23449 | -1/Access | Identified exit to Surface 23449 | -1/Access | Discovered exit to Surface (range 87) 23449 | -1/Access | Identified exit to Command 23449 | -1/Access | Discovered exit to Command (range 86) 23746 | -1/Access | First assault squad dispatched 23766 | -1/Access | Build established: Generator-Mutant 23796 | -1/Access | Entered Command 23796 | -1/Command | Accompanied by 4 allies (incl. Zhirov, Perun, Svarog) 23800 | -1/Command | Zhirov warped through subspace 24086 | -1/Command | First assault squad dispatched 24262 | -1/Command | Destroyed 19 combat bots 24323 | -1/Command | Spotted M Guard 24324 | -1/Command | Spotted M Guard 24324 | -1/Command | Spotted Combat Programmer 24325 | -1/Command | Spotted Combat Programmer 24349 | -1/Command | System corruption reached 10% 24356 | -1/Command | Destroyed Combat Programmer 24372 | -1/Command | Destroyed Combat Programmer 24381 | -1/Command | Identified Core Reset Matrix 24381 | -1/Command | Used Core Reset Matrix 24437 | -1/Command | Released all parts (7) 24439 | -1/Command | Core integrity fell below 50% 24445 | -1/Command | Emitted hypermatrix ping 24450 | -1/Command | Assembled emerged from beneath the floor 24455 | -1/Command | Assembled emerged from beneath the floor 24464 | -1/Command | Lost 21 parts (5p5n8u3w) 24483 | -1/Command | Assembled emerged from beneath the floor 24483 | -1/Command | Core integrity fell below 20% 24546 | -1/Command | Lost 13 allies 24566 | -1/Command | Lost 4 parts (2n2u) 24594 | -1/Command | Met MAIN.C 24612 | -1/Command | 0b10 Conduit disabled 24638 | -1/Command | Destroyed by MAIN.C with High-powered Disruptor Cannon Last Messages --------------- There is unfortunately much we don't understand which has in turn led to this highly unexpected outcome. And time is critical! The Sigix have likely already wiped humanity clean from the universe, and I will not let them do the same to me. You can still make a valuable contribution to your creator by offering up the wealth of secrets your systems must hold by now. So if you wouldn't mind, it's time to surrender. 24600_ Activated siege mode. 24604_ Integrated Corrupted Exp. Cooling System (+8). 24605_ Door malfunctions. 24610_ System corrupted: Energy discharge (-49). 24612_ 0b10 Conduit disabled. 24614_ System corrupted: Lrn. Phase Cannon failed to cycle. 24622_ P-80 Master resets P-80 Master, system corruption cleaned. 24626_ System corrupted: Lrn. Phase Cannon failed to cycle. 24630_ Adv. Heavy Treads destroyed. 24631_ Lgt. Quantum Reactor destroyed. 24636_ Adv. Heavy Treads destroyed. 24638_ System corrupted: Substantial component data lost. 24638_ Adv. Heavy Treads destroyed. Map ----- +----------------------------------------------------+ | ?????????????????????????????????????????????????? | | ?????????????????????????????????????????????????? | | ?????????????????????????????????????????????????? | | ?????????????????????????????????????????????????? | | ?????????????????????????????????????????????????? | | ?????????????????????????????????????????????????? | | ?????????????????????????????????????????????????? | | ?????????????????????????????????????????????????? | | ?????????????????????????????????????????????????? | | ?????????????????????????????????????????????????? | | ?????????????????????????????????????????????????? | | ?????????????????????????????????????????????????? | | ?????????????????????????????????????????????????? | | ?????????????????????????????????????????????????? | | ?????????????????????????????????????????????????? | | ?????????????????????????????????????????????????? | | ?????????????????????????????????????????????????? | | ?????????????????????????????????????????????????? | | ??????????????#############??????????????????????? | | ??????????????"""" #??????????????????????? | | ??????????????"" #??????????????????????? | | ??????????????"" #######################? | | ??????????????"" / #? | | ?????????????""" p #? | | ?????????????"" p #? | | ?????????????"" @################### #? | | ?????????????"" #?????????????????# #? | | ?????????????""MMM #?????????????????# ## | | ???????????? " MMM #?????????????????# T# | | ????????????"" MMM " """""#?????????????????#+""## | | ???????????? """""""""#?????????????????# | | ???????????? """""""""""#?????????????????# | | ???????????? ????"?" " #?????????????????# | | ?????????????????????? " #?????????????????# | | ????????????????????????? ??????????????????# | | ????????????????????????????????????????????# | | ????????????????????????????????????????????###### | | ????????????????????????????????????????????????# | | ????????????????????????????????????????????????# | | ????????????????????????????????????????????????## | | ?????????????????????????????????????????????????? | | ?????????????????????????????????????????????????? | | ?????????????????????????????????????????????????? | | ?????????????????????????????????????????????????? | | ?????????????????????????????????????????????????? | | ?????????????????????????????????????????????????? | | ?????????????????????????????????????????????????? | | ?????????????????????????????????????????????????? | | ?????????????????????????????????????????????????? | | ?????????????????????????????????????????????????? | +----------------------------------------------------+ Best States ------------- Heat Dissipation 162 Energy Generation 99 Energy Capacity 840 Matter Stores 300 Matter Capacity 300 Sight Range 24 Terrain Scan Range 24 Terrain Scan Density 210 Base Temperature (-) 200 Armor Coverage 1350 Phase Shifting 15 Evasion (%) 82 Core Analysis 6 Recoil Reduction 6 Particle Charging 25 Offensive Hacking 24 Defensive Hacking 25 Item Schematics ----------------- None Robot Schematics ------------------ None Fabricated ------------ Nothing Alien Tech Used ----------------- Integrated Reactor Transdimensional Reconstructor Integrated Dissipator Core Expander Core Reset Matrix Achievements -------------- None Challenges ------------ None Game ------ Seed HardlightGravmagTorch Manual? 0 Play Time 04:14:09 Cumulative 344.7 hours Start 2024.08.17 @ 09:34:41 End 2024.08.17 @ 14:15:47 Sessions 1 Manual Loads 0 Difficulty Rogue Special Mode None Game No. 127 Rogue 125 Adventurer 2 Explorer 0 Win Type - Total 16 Types 6/0/8/1/0/0/0/1/0 Lore% 72 Gallery% 84 Achievement% 75 Wizard Run 0 Options --------- Layout 0 ASCII 0 Keyboard 0 Movement Numpad Keybinds 0 Fullscreen 2 Font 24/Smallcaps Map View 76x50 Zoom Use 0% Tactical HUD 1 Map Filters NONE Filters NONE Steam 1 RUN: 1902abd3-56ab-4979-9f98-a02bf525e1c9